[Event "Early-Titled-Tuesday-Blitz-April-02-2024"]
[Site "Chess.com"]
[Date "2024.04.02"]
[Round "5"]
[White "kai_nov"]
[Black "Djager97"]
[Result "0-1"]
[WhiteElo "2337"]
[BlackElo "2600"]
[TimeControl "180+1"]
[EndTime "8:56:03 PDT"]
[Termination "Djager97 won on time"]

1. e4 {[%clk 0:03:00.9]} 1... e6 {[%clk 0:02:51]} 2. d4 {[%clk 0:03:00.4]} 2...
d5 {[%clk 0:02:51.9]} 3. Nc3 {[%clk 0:02:59.7]} 3... Nf6 {[%clk 0:02:51.6]} 4.
Bg5 {[%clk 0:02:58.6]} 4... Be7 {[%clk 0:02:51.6]} 5. e5 {[%clk 0:02:58]} 5...
Nfd7 {[%clk 0:02:52]} 6. h4 {[%clk 0:02:58.1]} 6... h6 {[%clk 0:02:51.9]} 7.
Bxe7 {[%clk 0:02:56.9]} 7... Qxe7 {[%clk 0:02:52.8]} 8. Nf3 {[%clk 0:02:55.1]}
8... a6 {[%clk 0:02:52.6]} 9. Bd3 {[%clk 0:02:52.9]} 9... c5 {[%clk 0:02:52.7]}
10. dxc5 {[%clk 0:02:52.1]} 10... Nc6 {[%clk 0:02:52.6]} 11. Qe2 {[%clk
0:02:51.6]} 11... Nxc5 {[%clk 0:02:52.2]} 12. O-O-O {[%clk 0:02:47.2]} 12... b5
{[%clk 0:02:52.2]} 13. Nb1 {[%clk 0:02:37.4]} 13... b4 {[%clk 0:02:49.2]} 14.
Nbd2 {[%clk 0:02:31.8]} 14... O-O {[%clk 0:02:31.2]} 15. g4 {[%clk 0:02:28.4]}
15... a5 {[%clk 0:02:27.1]} 16. g5 {[%clk 0:02:25.8]} 16... b3 {[%clk
0:02:12.7]} 17. Nxb3 {[%clk 0:02:16.8]} 17... Nxb3+ {[%clk 0:02:11.5]} 18. cxb3
{[%clk 0:02:15]} 18... a4 {[%clk 0:02:10]} 19. gxh6 {[%clk 0:02:10.8]} 19...
axb3 {[%clk 0:02:09.8]} 20. hxg7 {[%clk 0:01:56]} 20... Rd8 {[%clk 0:01:01.6]}
21. Ng5 {[%clk 0:01:34.6]} 21... bxa2 {[%clk 0:00:58.9]} 22. Kd2 {[%clk
0:01:19.4]} 22... Qb4+ {[%clk 0:00:55.5]} 23. Ke3 {[%clk 0:01:11.4]} 23... Qd4+
{[%clk 0:00:36.2]} 24. Kf3 {[%clk 0:01:09.8]} 24... Nxe5+ {[%clk 0:00:36.4]} 25.
Kg2 {[%clk 0:01:08.5]} 25... Qg4+ {[%clk 0:00:28.7]} 26. Qxg4 {[%clk 0:01:04.9]}
26... Nxg4 {[%clk 0:00:29.6]} 27. Rdg1 {[%clk 0:00:38.7]} 27... Ba6 {[%clk
0:00:19]} 28. Bh7+ {[%clk 0:00:29.3]} 28... Kxg7 {[%clk 0:00:19.2]} 29. Kf3
{[%clk 0:00:27.9]} 29... Nf6 {[%clk 0:00:19.4]} 30. Nxe6+ {[%clk 0:00:12.6]}
30... Kxh7 {[%clk 0:00:18.4]} 31. Nxd8 {[%clk 0:00:11.2]} 31... Rxd8 {[%clk
0:00:19.3]} 32. Kf4 {[%clk 0:00:09.8]} 32... Bd3 {[%clk 0:00:18.3]} 33. Ke5
{[%clk 0:00:09.6]} 33... Ne4 {[%clk 0:00:14.7]} 34. f3 {[%clk 0:00:08.4]} 34...
Nf2 {[%clk 0:00:13]} 35. Rh2 {[%clk 0:00:08.5]} 35... Bb1 {[%clk 0:00:13.3]} 36.
Rg5 {[%clk 0:00:06.6]} 36... a1=Q {[%clk 0:00:12.5]} 37. Rhg2 {[%clk 0:00:04.2]}
37... Qxb2+ {[%clk 0:00:12.3]} 38. Kf4 {[%clk 0:00:04]} 38... Qd4+ {[%clk
0:00:11.8]} 39. Kg3 {[%clk 0:00:04.1]} 39... Rg8 {[%clk 0:00:11.2]} 40. Kh2
{[%clk 0:00:03.3]} 40... Qxh4+ {[%clk 0:00:09.7]} 41. Kg1 {[%clk 0:00:02.6]}
41... Nh3+ {[%clk 0:00:10]} 42. Kf1 {[%clk 0:00:02.6]} 42... Bd3+ {[%clk
0:00:10.3]} 0-1

[Event "Early-Titled-Tuesday-Blitz-April-02-2024"]
[Site "Chess.com"]
[Date "2024.04.02"]
[Round "5"]
[White "MathiasWomacka"]
[Black "Ariadna_Atreides"]
[Result "0-1"]
[WhiteElo "2470"]
[BlackElo "2205"]
[TimeControl "180+1"]
[EndTime "8:56:03 PDT"]
[Termination "Ariadna_Atreides won on time"]

1. e4 {[%clk 0:03:00.9]} 1... c6 {[%clk 0:02:49.3]} 2. d4 {[%clk 0:02:59.4]}
2... d5 {[%clk 0:02:48.8]} 3. Nd2 {[%clk 0:03:00]} 3... dxe4 {[%clk 0:02:48.6]}
4. Nxe4 {[%clk 0:03:00.9]} 4... Nf6 {[%clk 0:02:48.7]} 5. Nxf6+ {[%clk 0:03:01]}
5... exf6 {[%clk 0:02:49.6]} 6. Bc4 {[%clk 0:02:59.7]} 6... Bd6 {[%clk
0:02:48.1]} 7. Qe2+ {[%clk 0:02:59.2]} 7... Qe7 {[%clk 0:02:48.6]} 8. Qxe7+
{[%clk 0:02:58.1]} 8... Kxe7 {[%clk 0:02:49.2]} 9. Ne2 {[%clk 0:02:57.9]} 9...
Re8 {[%clk 0:02:46.3]} 10. Bf4 {[%clk 0:02:57.3]} 10... Be6 {[%clk 0:02:42]} 11.
Bd3 {[%clk 0:02:55.6]} 11... h5 {[%clk 0:02:08.8]} 12. O-O-O {[%clk 0:02:49.5]}
12... h4 {[%clk 0:01:48.2]} 13. c4 {[%clk 0:02:28.9]} 13... Nd7 {[%clk
0:01:39.2]} 14. h3 {[%clk 0:02:10.4]} 14... Bxf4+ {[%clk 0:00:50.4]} 15. Nxf4
{[%clk 0:02:11.3]} 15... g5 {[%clk 0:00:50.6]} 16. Ne2 {[%clk 0:02:00.3]} 16...
Nb6 {[%clk 0:00:49.9]} 17. b3 {[%clk 0:01:59.5]} 17... Rad8 {[%clk 0:00:49]} 18.
Kb2 {[%clk 0:01:54.7]} 18... f5 {[%clk 0:00:43.4]} 19. f4 {[%clk 0:01:39.4]}
19... f6 {[%clk 0:00:32.9]} 20. Kc3 {[%clk 0:01:29.4]} 20... Rh8 {[%clk
0:00:24.6]} 21. a4 {[%clk 0:00:56.6]} 21... a5 {[%clk 0:00:23.5]} 22. Bc2 {[%clk
0:00:47.1]} 22... g4 {[%clk 0:00:15.4]} 23. Rde1 {[%clk 0:00:37.2]} 23... Kf7
{[%clk 0:00:13.4]} 24. Nc1 {[%clk 0:00:31.4]} 24... Rdg8 {[%clk 0:00:11]} 25.
Nd3 {[%clk 0:00:21.3]} 25... gxh3 {[%clk 0:00:10.2]} 26. gxh3 {[%clk 0:00:21.7]}
26... Rg3 {[%clk 0:00:10.7]} 27. Kb2 {[%clk 0:00:11.9]} 27... Rhg8 {[%clk
0:00:08.1]} 28. Nc5 {[%clk 0:00:11.3]} 28... Bc8 {[%clk 0:00:08.4]} 29. Re2
{[%clk 0:00:08.2]} 29... Rg2 {[%clk 0:00:07.8]} 30. Rhe1 {[%clk 0:00:07.4]}
30... Rxe2 {[%clk 0:00:07.9]} 31. Rxe2 {[%clk 0:00:08.3]} 31... Rg3 {[%clk
0:00:07.7]} 32. d5 {[%clk 0:00:07]} 32... cxd5 {[%clk 0:00:07.2]} 33. cxd5
{[%clk 0:00:07.9]} 33... Nxd5 {[%clk 0:00:07.5]} 34. Rd2 {[%clk 0:00:07.8]}
34... Nxf4 {[%clk 0:00:07]} 35. Rd8 {[%clk 0:00:07.5]} 35... Be6 {[%clk
0:00:06.3]} 36. Nxe6 {[%clk 0:00:07.1]} 36... Nxe6 {[%clk 0:00:06.5]} 37. Bxf5
{[%clk 0:00:06.1]} 37... Rg2+ {[%clk 0:00:05.4]} 38. Kc3 {[%clk 0:00:05.6]}
38... Nf4 {[%clk 0:00:04.2]} 39. Rd7+ {[%clk 0:00:04.8]} 39... Ke8 {[%clk
0:00:03.6]} 40. Rxb7 {[%clk 0:00:05.7]} 40... Rg3+ {[%clk 0:00:03.6]} 41. Kc4
{[%clk 0:00:05.6]} 41... Nxh3 {[%clk 0:00:04.5]} 42. Ra7 {[%clk 0:00:03.4]}
42... Nf2 {[%clk 0:00:04.2]} 43. Rxa5 {[%clk 0:00:02.7]} 43... Rg5 {[%clk
0:00:03.8]} 0-1

[Event "Early-Titled-Tuesday-Blitz-April-02-2024"]
[Site "Chess.com"]
[Date "2024.04.02"]
[Round "5"]
[White "VanRommel28"]
[Black "MalyDominator"]
[Result "0-1"]
[WhiteElo "2493"]
[BlackElo "2624"]
[TimeControl "180+1"]
[EndTime "8:56:07 PDT"]
[Termination "MalyDominator won by resignation"]

1. d4 {[%clk 0:02:53.3]} 1... d5 {[%clk 0:02:53.3]} 2. Nf3 {[%clk 0:02:52.9]}
2... Nf6 {[%clk 0:02:52.5]} 3. Bf4 {[%clk 0:02:53.4]} 3... c5 {[%clk 0:02:47.3]}
4. e3 {[%clk 0:02:53.5]} 4... e6 {[%clk 0:02:45]} 5. Nbd2 {[%clk 0:02:53]} 5...
Bd6 {[%clk 0:02:44.5]} 6. Bg3 {[%clk 0:02:48.7]} 6... O-O {[%clk 0:02:40.2]} 7.
c3 {[%clk 0:02:48.6]} 7... Qc7 {[%clk 0:02:40.1]} 8. dxc5 {[%clk 0:02:46.3]}
8... Bxg3 {[%clk 0:02:37.5]} 9. hxg3 {[%clk 0:02:45.8]} 9... Qxc5 {[%clk
0:02:38.2]} 10. Bd3 {[%clk 0:02:46.1]} 10... Nc6 {[%clk 0:02:36.3]} 11. Qe2
{[%clk 0:02:41.4]} 11... e5 {[%clk 0:02:36]} 12. e4 {[%clk 0:02:41.3]} 12... d4
{[%clk 0:02:35.9]} 13. Nb3 {[%clk 0:02:38.1]} 13... Qb6 {[%clk 0:02:35.3]} 14.
cxd4 {[%clk 0:02:33.7]} 14... Nxd4 {[%clk 0:02:29.1]} 15. Nbxd4 {[%clk
0:02:30.5]} 15... exd4 {[%clk 0:02:30]} 16. e5 {[%clk 0:02:30.8]} 16... Re8
{[%clk 0:02:24.5]} 17. Kf1 {[%clk 0:02:27.3]} 17... g6 {[%clk 0:02:21.3]} 18.
Re1 {[%clk 0:02:22.3]} 18... Ng4 {[%clk 0:02:16.9]} 19. Qe4 {[%clk 0:02:15.9]}
19... Bf5 {[%clk 0:02:13.9]} 20. Qe2 {[%clk 0:02:15.4]} 20... Bxd3 {[%clk
0:02:08]} 21. Qxd3 {[%clk 0:02:16.3]} 21... Qxb2 {[%clk 0:02:08.4]} 22. Re2
{[%clk 0:02:16.9]} 22... Qa1+ {[%clk 0:02:05.6]} 23. Re1 {[%clk 0:02:17]} 23...
Qc3 {[%clk 0:01:49.1]} 24. Qe4 {[%clk 0:02:14.6]} 24... h5 {[%clk 0:01:36.3]}
25. Qf4 {[%clk 0:02:07.1]} 25... Qc2 {[%clk 0:01:27]} 26. Ng5 {[%clk 0:01:58.1]}
26... Qxa2 {[%clk 0:01:16.5]} 27. e6 {[%clk 0:01:47.7]} 27... f6 {[%clk
0:01:16.4]} 28. Rxh5 {[%clk 0:01:37.9]} 28... gxh5 {[%clk 0:01:05.1]} 29. Re2
{[%clk 0:01:30.9]} 29... Qb1+ {[%clk 0:00:59]} 30. Re1 {[%clk 0:01:31.4]} 30...
Qc2 {[%clk 0:00:46.9]} 31. Re2 {[%clk 0:01:25.5]} 31... Qd1+ {[%clk 0:00:29.5]}
32. Re1 {[%clk 0:01:25.9]} 32... Qd3+ {[%clk 0:00:29.7]} 33. Kg1 {[%clk
0:01:24.9]} 33... fxg5 {[%clk 0:00:19.5]} 34. Qxg5+ {[%clk 0:01:14.6]} 34... Kh7
{[%clk 0:00:19.3]} 35. Qxh5+ {[%clk 0:00:50.5]} 35... Nh6 {[%clk 0:00:19.1]} 36.
Rc1 {[%clk 0:00:34.3]} 36... Re7 {[%clk 0:00:16.8]} 37. Qg5 {[%clk 0:00:23.9]}
37... Rae8 {[%clk 0:00:16.4]} 38. Rc8 {[%clk 0:00:22.1]} 38... Qd1+ {[%clk
0:00:12.7]} 39. Kh2 {[%clk 0:00:22.7]} 39... Qg4 {[%clk 0:00:03.3]} 40. Qc5
{[%clk 0:00:13.1]} 40... Nf5 {[%clk 0:00:01.1]} 41. Rxe8 {[%clk 0:00:11.5]}
41... Rxe8 {[%clk 0:00:01.7]} 42. Qd5 {[%clk 0:00:11.8]} 42... Qh5+ {[%clk
0:00:01.9]} 43. Kg1 {[%clk 0:00:12.4]} 43... Qd1+ {[%clk 0:00:02.2]} 44. Kh2
{[%clk 0:00:12.3]} 44... Qh5+ {[%clk 0:00:02.9]} 45. Kg1 {[%clk 0:00:12.3]}
45... Qg6 {[%clk 0:00:03.8]} 46. g4 {[%clk 0:00:10.5]} 46... Qxe6 {[%clk
0:00:03.3]} 47. Qxb7+ {[%clk 0:00:10]} 47... Qe7 {[%clk 0:00:03.5]} 48. Qb1
{[%clk 0:00:10.6]} 48... Qe1+ {[%clk 0:00:03.4]} 49. Qxe1 {[%clk 0:00:11.2]}
49... Rxe1+ {[%clk 0:00:03.9]} 50. Kh2 {[%clk 0:00:12.1]} 50... Nd6 {[%clk
0:00:04.5]} 51. f4 {[%clk 0:00:12.2]} 51... d3 {[%clk 0:00:05.2]} 52. Kg3 {[%clk
0:00:13.1]} 52... d2 {[%clk 0:00:05.8]} 0-1

[Event "Early-Titled-Tuesday-Blitz-April-02-2024"]
[Site "Chess.com"]
[Date "2024.04.02"]
[Round "5"]
[White "eagleclaw07"]
[Black "manitodeplomo"]
[Result "0-1"]
[WhiteElo "2840"]
[BlackElo "2668"]
[TimeControl "180+1"]
[EndTime "8:56:08 PDT"]
[Termination "manitodeplomo won on time"]

1. d4 {[%clk 0:02:50]} 1... g6 {[%clk 0:02:57.6]} 2. c4 {[%clk 0:02:49.8]} 2...
Bg7 {[%clk 0:02:57.6]} 3. Nf3 {[%clk 0:02:49.4]} 3... d6 {[%clk 0:02:55]} 4. g3
{[%clk 0:02:49.2]} 4... Nf6 {[%clk 0:02:44.3]} 5. Bg2 {[%clk 0:02:48.7]} 5...
O-O {[%clk 0:02:45.2]} 6. O-O {[%clk 0:02:48.4]} 6... c5 {[%clk 0:02:45.6]} 7.
d5 {[%clk 0:02:45.4]} 7... e6 {[%clk 0:02:40.7]} 8. Nc3 {[%clk 0:02:45.3]} 8...
exd5 {[%clk 0:02:40.6]} 9. cxd5 {[%clk 0:02:46.2]} 9... a6 {[%clk 0:02:39]} 10.
a4 {[%clk 0:02:45.9]} 10... Re8 {[%clk 0:02:39.6]} 11. Bf4 {[%clk 0:02:45.5]}
11... Nh5 {[%clk 0:02:39.7]} 12. Bg5 {[%clk 0:02:45.4]} 12... Qc7 {[%clk
0:02:39.8]} 13. Re1 {[%clk 0:02:43.2]} 13... Nd7 {[%clk 0:02:38]} 14. h3 {[%clk
0:02:39.1]} 14... Rb8 {[%clk 0:02:37.1]} 15. g4 {[%clk 0:02:32.1]} 15... Nhf6
{[%clk 0:02:34.9]} 16. a5 {[%clk 0:02:10.4]} 16... h5 {[%clk 0:02:31.7]} 17.
gxh5 {[%clk 0:02:07.2]} 17... Nxh5 {[%clk 0:02:31]} 18. e4 {[%clk 0:01:50.4]}
18... b5 {[%clk 0:02:27.9]} 19. axb6 {[%clk 0:01:48.4]} 19... Rxb6 {[%clk
0:02:26.6]} 20. Qc2 {[%clk 0:01:41.1]} 20... Ne5 {[%clk 0:02:06.6]} 21. Nd2
{[%clk 0:01:34.2]} 21... c4 {[%clk 0:01:44.1]} 22. Bf1 {[%clk 0:00:49.6]} 22...
Nd3 {[%clk 0:01:22.2]} 23. Reb1 {[%clk 0:00:40.4]} 23... Bd7 {[%clk 0:00:24.7]}
24. Be3 {[%clk 0:00:27.7]} 24... Rbb8 {[%clk 0:00:21]} 25. Bxd3 {[%clk
0:00:25.2]} 25... cxd3 {[%clk 0:00:20.5]} 26. Qxd3 {[%clk 0:00:26.1]} 26... a5
{[%clk 0:00:17.8]} 27. Nc4 {[%clk 0:00:19]} 27... a4 {[%clk 0:00:14.6]} 28. Nxa4
{[%clk 0:00:17]} 28... Rb4 {[%clk 0:00:14.5]} 29. Nab6 {[%clk 0:00:14.5]} 29...
Bb5 {[%clk 0:00:13.5]} 30. Rc1 {[%clk 0:00:11.1]} 30... Qe7 {[%clk 0:00:09.1]}
31. Qa3 {[%clk 0:00:05.1]} 31... Rxc4 {[%clk 0:00:05.3]} 32. Nxc4 {[%clk
0:00:05.5]} 32... Qxe4 {[%clk 0:00:05.1]} 33. Nxd6 {[%clk 0:00:05.8]} 33... Qf3
{[%clk 0:00:05.2]} 34. Nxb5 {[%clk 0:00:06]} 34... Ng3 {[%clk 0:00:04]} 35. Kh2
{[%clk 0:00:03.6]} 35... Ne2 {[%clk 0:00:01.3]} 36. Qd6 {[%clk 0:00:02.5]} 36...
Be5+ {[%clk 0:00:01.6]} 37. Qxe5 {[%clk 0:00:03.2]} 37... Rxe5 {[%clk
0:00:02.4]} 38. Ra8+ {[%clk 0:00:03.8]} 38... Kh7 {[%clk 0:00:01.9]} 39. Rcc8
{[%clk 0:00:04]} 39... Rh5 {[%clk 0:00:01.8]} 40. Rh8+ {[%clk 0:00:04.3]} 40...
Kg7 {[%clk 0:00:02.2]} 41. Rag8+ {[%clk 0:00:03.5]} 41... Kf6 {[%clk 0:00:02.2]}
42. Rxh5 {[%clk 0:00:03.3]} 42... gxh5 {[%clk 0:00:02.5]} 43. d6 {[%clk
0:00:03]} 43... Nf4 {[%clk 0:00:02]} 0-1

[Event "Early-Titled-Tuesday-Blitz-April-02-2024"]
[Site "Chess.com"]
[Date "2024.04.02"]
[Round "5"]
[White "IMRosen"]
[Black "Savagelittlemole"]
[Result "0-1"]
[WhiteElo "2672"]
[BlackElo "2529"]
[TimeControl "180+1"]
[EndTime "8:56:10 PDT"]
[Termination "Savagelittlemole won on time"]

1. d4 {[%clk 0:02:52]} 1... Nf6 {[%clk 0:02:59.1]} 2. Bf4 {[%clk 0:02:48.7]}
2... c5 {[%clk 0:02:57.6]} 3. e3 {[%clk 0:02:48.8]} 3... g6 {[%clk 0:02:56.6]}
4. c3 {[%clk 0:02:46.3]} 4... Bg7 {[%clk 0:02:56.8]} 5. Nd2 {[%clk 0:02:46.2]}
5... O-O {[%clk 0:02:57.2]} 6. dxc5 {[%clk 0:02:46.3]} 6... Nh5 {[%clk
0:02:50.4]} 7. Bg5 {[%clk 0:02:41.4]} 7... h6 {[%clk 0:02:34.5]} 8. Bh4 {[%clk
0:02:38.8]} 8... d6 {[%clk 0:02:21.6]} 9. Ne4 {[%clk 0:02:28.1]} 9... Bf5 {[%clk
0:02:11.2]} 10. Nxd6 {[%clk 0:02:21.1]} 10... Qd7 {[%clk 0:01:55.1]} 11. Nxf5
{[%clk 0:02:11.4]} 11... Qxf5 {[%clk 0:01:56]} 12. g4 {[%clk 0:01:07.5]} 12...
Qe4 {[%clk 0:01:54]} 13. Qf3 {[%clk 0:01:07.7]} 13... Qc2 {[%clk 0:01:54.1]} 14.
Qe2 {[%clk 0:00:54.2]} 14... Bxc3+ {[%clk 0:01:50.2]} 15. bxc3 {[%clk
0:00:47.5]} 15... Qxc3+ {[%clk 0:01:51.1]} 16. Qd2 {[%clk 0:00:47.3]} 16...
Qxa1+ {[%clk 0:01:51.1]} 17. Ke2 {[%clk 0:00:47.8]} 17... Nf6 {[%clk 0:01:45.2]}
18. Bg2 {[%clk 0:00:45.9]} 18... Qe5 {[%clk 0:01:30.5]} 19. Bxb7 {[%clk
0:00:43.6]} 19... Nbd7 {[%clk 0:01:20.6]} 20. Bxa8 {[%clk 0:00:41.1]} 20... Rxa8
{[%clk 0:01:21.5]} 21. c6 {[%clk 0:00:36.2]} 21... Qb5+ {[%clk 0:01:18.7]} 22.
Qd3 {[%clk 0:00:30.9]} 22... Qxc6 {[%clk 0:01:18.4]} 23. Nf3 {[%clk 0:00:27.8]}
23... Ne5 {[%clk 0:00:52.4]} 24. Nxe5 {[%clk 0:00:15]} 24... Qxh1 {[%clk
0:00:52.1]} 25. Nxg6 {[%clk 0:00:08]} 25... Qe4 {[%clk 0:00:37]} 26. Qxe4 {[%clk
0:00:04.8]} 26... Nxe4 {[%clk 0:00:37.9]} 27. Nxe7+ {[%clk 0:00:05]} 27... Kf8
{[%clk 0:00:34.6]} 28. f3 {[%clk 0:00:04.5]} 28... Nc3+ {[%clk 0:00:30.7]} 29.
Kd3 {[%clk 0:00:04.1]} 29... Nxa2 {[%clk 0:00:31.2]} 30. Nd5 {[%clk 0:00:03.5]}
30... a5 {[%clk 0:00:29.8]} 31. Kc4 {[%clk 0:00:02.1]} 31... a4 {[%clk
0:00:20.8]} 32. Be1 {[%clk 0:00:01.9]} 32... a3 {[%clk 0:00:17.4]} 33. Nb4
{[%clk 0:00:01.5]} 33... Nxb4 {[%clk 0:00:16.6]} 34. Bxb4+ {[%clk 0:00:02.4]}
34... Kg7 {[%clk 0:00:15.3]} 35. Bc3+ {[%clk 0:00:03.3]} 35... Kg6 {[%clk
0:00:15.1]} 36. Kb3 {[%clk 0:00:03.1]} 36... a2 {[%clk 0:00:14.5]} 37. Ba1
{[%clk 0:00:03.7]} 37... Kg5 {[%clk 0:00:10.1]} 38. h3 {[%clk 0:00:03]} 38...
Kh4 {[%clk 0:00:10.4]} 39. f4 {[%clk 0:00:02.9]} 39... Kxh3 {[%clk 0:00:10.6]}
40. g5 {[%clk 0:00:03.8]} 40... hxg5 {[%clk 0:00:10.1]} 41. fxg5 {[%clk
0:00:04.7]} 41... Kg4 {[%clk 0:00:10.3]} 42. g6 {[%clk 0:00:03]} 42... fxg6
{[%clk 0:00:10.2]} 43. e4 {[%clk 0:00:03.7]} 43... Kf4 {[%clk 0:00:09.7]} 44. e5
{[%clk 0:00:04.4]} 44... Kf5 {[%clk 0:00:09.3]} 45. Kc4 {[%clk 0:00:04.5]} 45...
Ke6 {[%clk 0:00:09.4]} 46. Kd3 {[%clk 0:00:02.3]} 46... Rb8 {[%clk 0:00:08.3]}
47. Ke4 {[%clk 0:00:01.7]} 47... Rb1 {[%clk 0:00:08.5]} 48. Bd4 {[%clk
0:00:02.2]} 48... a1=Q {[%clk 0:00:08.7]} 49. Be3 {[%clk 0:00:01.2]} 49... Qa4+
{[%clk 0:00:08.2]} 50. Kf3 {[%clk 0:00:01.7]} 50... Rb3 {[%clk 0:00:08.7]} 0-1

[Event "Early-Titled-Tuesday-Blitz-April-02-2024"]
[Site "Chess.com"]
[Date "2024.04.02"]
[Round "5"]
[White "TheBigBoss04"]
[Black "NastyaHn"]
[Result "1-0"]
[WhiteElo "2742"]
[BlackElo "2458"]
[TimeControl "180+1"]
[EndTime "8:56:11 PDT"]
[Termination "TheBigBoss04 won on time"]

1. Nf3 {[%clk 0:03:00.9]} 1... e6 {[%clk 0:03:00.2]} 2. g3 {[%clk 0:03:00.3]}
2... d5 {[%clk 0:03:00.5]} 3. Bg2 {[%clk 0:02:59.8]} 3... Nf6 {[%clk 0:03:01.1]}
4. d3 {[%clk 0:02:59.3]} 4... Be7 {[%clk 0:03:01.5]} 5. Nbd2 {[%clk 0:02:59.2]}
5... O-O {[%clk 0:03:02.2]} 6. O-O {[%clk 0:02:59.6]} 6... c5 {[%clk 0:03:02.5]}
7. e4 {[%clk 0:03:00.3]} 7... Nc6 {[%clk 0:03:01.8]} 8. Re1 {[%clk 0:03:00.8]}
8... Rb8 {[%clk 0:02:57.7]} 9. e5 {[%clk 0:02:52.5]} 9... Nd7 {[%clk 0:02:56.9]}
10. Nf1 {[%clk 0:02:49.2]} 10... b5 {[%clk 0:02:55.6]} 11. h4 {[%clk 0:02:43.4]}
11... h6 {[%clk 0:02:53.1]} 12. Bf4 {[%clk 0:02:41]} 12... Re8 {[%clk
0:02:48.5]} 13. h5 {[%clk 0:02:39.4]} 13... Nf8 {[%clk 0:02:48.4]} 14. N1h2
{[%clk 0:02:34.7]} 14... Nh7 {[%clk 0:02:45.1]} 15. Ng4 {[%clk 0:02:27.2]} 15...
Nd4 {[%clk 0:02:36.3]} 16. c3 {[%clk 0:02:09.7]} 16... Nxf3+ {[%clk 0:02:35]}
17. Qxf3 {[%clk 0:02:10.6]} 17... Bg5 {[%clk 0:02:34.5]} 18. d4 {[%clk
0:01:37.1]} 18... c4 {[%clk 0:02:32.2]} 19. a3 {[%clk 0:01:35]} 19... a5 {[%clk
0:02:30.5]} 20. Bf1 {[%clk 0:01:21.5]} 20... Bd7 {[%clk 0:02:26]} 21. Kg2 {[%clk
0:01:17.9]} 21... Bc6 {[%clk 0:02:19.2]} 22. Be2 {[%clk 0:01:16.3]} 22... b4
{[%clk 0:02:15.3]} 23. axb4 {[%clk 0:01:14.3]} 23... axb4 {[%clk 0:02:16]} 24.
Ra7 {[%clk 0:01:13.7]} 24... Rf8 {[%clk 0:02:14.7]} 25. Rea1 {[%clk 0:01:09.6]}
25... bxc3 {[%clk 0:02:08.5]} 26. bxc3 {[%clk 0:01:10.5]} 26... Rb2 {[%clk
0:02:05.2]} 27. R1a2 {[%clk 0:00:56.4]} 27... Rxa2 {[%clk 0:01:58.8]} 28. Rxa2
{[%clk 0:00:57.3]} 28... Qb6 {[%clk 0:01:58.4]} 29. Bd1 {[%clk 0:00:52.4]} 29...
Qb1 {[%clk 0:01:54.2]} 30. Ra6 {[%clk 0:00:51]} 30... Bb7 {[%clk 0:01:47.3]} 31.
Ra7 {[%clk 0:00:51]} 31... Ra8 {[%clk 0:01:41.4]} 32. Bc2 {[%clk 0:00:47.5]}
32... Qxc2 {[%clk 0:01:34.9]} 33. Rxb7 {[%clk 0:00:47.7]} 33... Qf5 {[%clk
0:01:06.2]} 34. Ne3 {[%clk 0:00:36.5]} 34... Qd3 {[%clk 0:00:57.4]} 35. Rc7
{[%clk 0:00:31.9]} 35... Qxc3 {[%clk 0:00:42.9]} 36. Nxc4 {[%clk 0:00:31.1]}
36... Qxf3+ {[%clk 0:00:42]} 37. Kxf3 {[%clk 0:00:31.7]} 37... dxc4 {[%clk
0:00:41.9]} 38. Rxc4 {[%clk 0:00:29]} 38... Kf8 {[%clk 0:00:32.1]} 39. Rc7
{[%clk 0:00:28.4]} 39... Ke8 {[%clk 0:00:28.2]} 40. Ke4 {[%clk 0:00:25.5]} 40...
Bxf4 {[%clk 0:00:20]} 41. gxf4 {[%clk 0:00:23.6]} 41... Nf8 {[%clk 0:00:19.7]}
42. f3 {[%clk 0:00:19.5]} 42... Ra1 {[%clk 0:00:09.6]} 43. Rc8+ {[%clk 0:00:14]}
43... Ke7 {[%clk 0:00:09.9]} 44. Rc7+ {[%clk 0:00:12.4]} 44... Nd7 {[%clk
0:00:10]} 45. f5 {[%clk 0:00:12.8]} 45... exf5+ {[%clk 0:00:08.9]} 46. Kxf5
{[%clk 0:00:13.7]} 46... Rd1 {[%clk 0:00:06.8]} 47. Ke4 {[%clk 0:00:12.9]} 47...
Ke6 {[%clk 0:00:03.6]} 48. d5+ {[%clk 0:00:11.1]} 48... Rxd5 {[%clk 0:00:02.6]}
49. Rc6+ {[%clk 0:00:10.2]} 49... Ke7 {[%clk 0:00:02.6]} 50. Kxd5 {[%clk
0:00:10.8]} 1-0